fUST/lending_fUST_20241225
["ID","MTS","AMOUNT","RATE_DAILY","PERIOD"]
[346548355,1735074633650,-837.67,0.00013698,2]
[346548356,1735074633659,-2035.67,0.00013698,2]
[346548357,1735074633669,-500.0,0.00013698,2]
[346548358,1735074633678,-500.0,0.00013698,2]
[346548359,1735074633686,-500.0,0.00013698,2]
[346548360,1735074633695,-782.04,0.00013698,2]
[346548361,1735074633705,-500.0,0.00013698,2]
[346548362,1735074633715,-74000.92809781,0.00013698,2]
[346548375,1735074637956,-1007.1,0.00013698,2]
[346548376,1735074637968,-401.33490536,0.00013698,2]
[346548377,1735074637980,-761.28509464,0.00013698,2]
[346548379,1735074637990,-500.0,0.00013698,2]
[346548380,1735074637999,-768.89,0.00013698,2]
[346548381,1735074638009,-1296.7517737,0.00013698,2]
[346548382,1735074638020,-62.6882263,0.00013698,2]
[346548383,1735074638029,-500.0,0.00013698,2]
[346548384,1735074638039,-617.3117737,0.00013698,2]
[346548385,1735074638051,-800.88919395,0.00013698,2]
[346548410,1735074640074,-2216.05845621,0.00013698,2]
[346548414,1735074640135,-106.11057614,0.00013698,2]
[346548415,1735074640145,-500.0,0.00013698,2]
[346548416,1735074640155,-2215.78347675,0.00013698,2]
[346548417,1735074640166,-830.53652325,0.00013698,2]
[346548418,1735074640176,-693.74,0.00013698,2]
[346548419,1735074640187,-2616.03,0.00013698,2]
[346548420,1735074640196,-500.0,0.00013698,2]
[346548421,1735074640206,-751.51,0.00013698,2]
[346548422,1735074640215,-1720.07,0.00013698,2]
[346548423,1735074640225,-1269.06,0.00013698,2]
[346548424,1735074640234,-2498.31,0.00013698,2]
[346548425,1735074640244,-738.69,0.00013698,2]
[346548426,1735074640253,-500.0,0.00013698,2]
[346548427,1735074640263,-557.23,0.00013698,2]
[346548428,1735074640274,-917.25,0.00013698,2]
[346548429,1735074640283,-1719.2,0.00013698,2]
[346548430,1735074640292,-500.0,0.00013698,2]
[346548431,1735074640302,-1118.78,0.00013698,2]
[346548432,1735074640311,-1364.85,0.00013698,2]
[346548433,1735074640320,-1516.1,0.00013698,2]
[346548434,1735074640329,-985.22,0.00013698,2]
[346548435,1735074640339,-500.0,0.00013698,2]
[346548436,1735074640348,-500.0,0.00013698,2]
[346548437,1735074640357,-950.06,0.00013698,2]
[346548438,1735074640366,-1452.37,0.00013698,2]
[346548439,1735074640377,-1372.31,0.00013698,2]
[346548440,1735074640387,-500.0,0.00013698,2]
[346548441,1735074640397,-3689.57,0.00013698,2]
[346548442,1735074640406,-500.0,0.00013698,2]
[346548443,1735074640415,-1712.51,0.00013698,2]
[346548444,1735074640425,-500.0,0.00013698,2]
[346548445,1735074640434,-6399.22,0.00013698,2]
[346548446,1735074640443,-963.79,0.00013698,2]
[346548447,1735074640453,-500.0,0.00013698,2]
[346548448,1735074640463,-1390.96,0.00013698,2]
[346548449,1735074640472,-2406.0,0.00013698,2]
[346548450,1735074640481,-500.0,0.00013698,2]
[346548451,1735074640491,-712.17,0.00013698,2]
[346548452,1735074640500,-500.0,0.00013698,2]
[346548453,1735074640510,-500.0,0.00013698,2]
[346548454,1735074640519,-2722.77,0.00013698,2]
[346548455,1735074640528,-500.0,0.00013698,2]
[346548456,1735074640537,-1415.69,0.00013698,2]
[346548457,1735074640547,-1546.95,0.00013698,2]
[346548458,1735074640556,-1221.86,0.00013698,2]
[346548459,1735074640565,-500.0,0.00013698,2]
[346548460,1735074640574,-500.0,0.00013698,2]
[346548461,1735074640584,-500.0,0.00013698,2]
[346548462,1735074640593,-619.39,0.00013698,2]
[346548463,1735074640603,-500.0,0.00013698,2]
[346548464,1735074640612,-1894.25,0.00013698,2]
[346548465,1735074640622,-500.0,0.00013698,2]
[346548466,1735074640633,-1465.54,0.00013698,2]
[346548467,1735074640643,-622.66,0.00013698,2]
[346548468,1735074640804,-676.92,0.00013698,2]
[346548469,1735074640813,-547.69,0.00013698,2]
[346548470,1735074640823,-2795.41,0.00013698,2]
[346548471,1735074640832,-500.0,0.00013698,2]
[346548472,1735074640841,-1822.59,0.00013698,2]
[346548473,1735074640850,-1217.39,0.00013698,2]
[346548474,1735074640859,-25690.37,0.00013698,2]
[346548475,1735074640869,-3687.57,0.00013698,2]
[346548476,1735074640879,-500.0,0.00013698,2]
[346548477,1735074640890,-1090.43,0.00013698,2]
[346548478,1735074640899,-500.0,0.00013698,2]
[346548479,1735074640909,-1490.14,0.00013698,2]
[346548480,1735074640919,-3967.03,0.00013698,2]
[346548481,1735074640929,-500.0,0.00013698,2]
[346548482,1735074640939,-500.0,0.00013698,2]
[346548483,1735074640949,-500.0,0.00013698,2]
[346548484,1735074640958,-232.32,0.00013698,2]
[346548485,1735074640967,-738.0,0.00013698,2]
[346548486,1735074640977,-535.87,0.00013698,2]
[346548487,1735074640986,-500.0,0.00013698,2]
[346548488,1735074640995,-500.0,0.00013698,2]
[346548489,1735074641004,-4161.12,0.00013698,2]
[346548490,1735074641014,-1008.15,0.00013698,2]
[346548491,1735074641023,-663.2,0.00013698,2]
[346548492,1735074641032,-500.0,0.00013698,2]
[346548493,1735074641041,-1416.40480263,0.00013698,2]
[346548494,1735074641054,-1019.0,0.00013698,2]
[346548546,1735074643056,-831.19060171,0.00013698,2]
[346548548,1735074643068,-587.76807018,0.00013698,2]
[346548550,1735074643114,-2698.64,0.00013698,2]
[346548551,1735074643288,-1429.42396621,0.00013698,2]
[346548574,1735074646020,-1455.53255927,0.00013698,2]
[346548575,1735074646029,-22252.2,0.00013698,2]
[346548576,1735074646039,-3311.02,0.00013698,2]
[346548577,1735074646048,-500.0,0.00013698,2]
[346548578,1735074646058,-500.0,0.00013698,2]
[346548579,1735074646067,-1934.62,0.00013698,2]
[346548580,1735074646076,-500.0,0.00013698,2]
[346548581,1735074646086,-500.0,0.00013698,2]
[346548582,1735074646096,-916.85,0.00013698,4]
[346548584,1735074646106,-1931.97,0.00013698,2]
[346548586,1735074646118,-569.02,0.00013698,2]
[346548588,1735074646128,-1761.19,0.00013698,2]
[346548591,1735074646138,-500.0,0.00013698,2]
[346548593,1735074646147,-2702.58,0.00013698,2]
[346548595,1735074646156,-3629.8,0.00013698,2]
[346548597,1735074646166,-10402.05,0.00013698,2]
[346548599,1735074646175,-584.23,0.00013698,2]
[346548601,1735074646185,-1685.52,0.00013698,2]
[346548602,1735074646195,-364.61455158,0.00013698,2]
[346548603,1735074646204,-598.8,0.00013698,2]
[346548604,1735074646214,-1624.33,0.00013698,2]
[346548605,1735074646223,-500.0,0.00013698,2]
[346548606,1735074646231,-500.0,0.00013698,2]
[346548607,1735074646240,-7098.07,0.00013698,2]
[346548608,1735074646249,-1862.42,0.00013698,2]
[346548609,1735074646259,-500.0,0.00013698,2]
[346548610,1735074646268,-17664.69,0.00013698,2]
[346548611,1735074646277,-1294.36,0.00013698,2]
[346548612,1735074646286,-500.0,0.00013698,2]
[346548613,1735074646295,-500.0,0.00013698,2]
[346548614,1735074646304,-1057.09,0.00013698,2]
[346548615,1735074646313,-500.0,0.00013698,2]
[346548616,1735074646323,-2801.44,0.00013698,2]
[346548617,1735074646332,-1042.79,0.00013698,2]
[346548618,1735074646341,-1809.63,0.00013698,2]
[346548619,1735074646351,-706.37,0.00013698,2]
[346548620,1735074646361,-1357.75,0.00013698,2]
[346548621,1735074646370,-1337.04,0.00013698,2]
[346548622,1735074646381,-1254.44,0.00013698,2]
[346548624,1735074646390,-2206.1,0.00013698,2]
[346548626,1735074646400,-818.15,0.00013698,2]
[346548627,1735074646409,-500.0,0.00013698,2]
[346548629,1735074646418,-83791.58,0.00013698,2]
[346548630,1735074646428,-621.58,0.00013698,2]
[346548631,1735074646437,-2970.01,0.00013698,2]
[346548632,1735074646446,-500.0,0.00013698,2]
[346548634,1735074646455,-553.21,0.00013698,2]
[346548636,1735074646465,-212.558789,0.00013699,2]
[346548638,1735074646474,-500.0,0.00013699,2]
[346548639,1735074646483,-500.0,0.00013699,2]
[346548640,1735074646492,-500.0,0.00013699,2]
[346548641,1735074646502,-500.0,0.00013699,2]
[346548642,1735074646511,-500.0,0.00013699,2]
[346548643,1735074646520,-500.0,0.00013699,2]
[346548644,1735074646530,-500.0,0.00013699,2]
[346548645,1735074646539,-500.0,0.00013699,2]
[346548646,1735074646548,-500.0,0.00013699,2]
[346548647,1735074646557,-500.0,0.00013699,2]
[346548648,1735074646567,-500.0,0.00013699,2]
[346548649,1735074646576,-500.0,0.00013699,2]
[346548650,1735074646585,-500.0,0.00013699,2]
[346548651,1735074646595,-500.0,0.00013699,2]
[346548652,1735074646604,-500.0,0.00013699,2]
[346548653,1735074646614,-500.0,0.00013699,2]
[346548654,1735074646623,-500.0,0.00013699,2]
[346548655,1735074646633,-500.0,0.00013699,2]
[346548656,1735074646642,-500.0,0.00013699,2]
[346548657,1735074646652,-500.0,0.00013699,2]
[346548658,1735074646661,-500.0,0.00013699,2]
[346548659,1735074646671,-500.0,0.00013699,2]
[346548660,1735074646680,-500.0,0.00013699,2]
[346548661,1735074646690,-264.83321794,0.00013699,2]
[346548662,1735074646699,-500.0,0.00013699,2]
[346548663,1735074646708,-500.0,0.00013699,2]
[346548664,1735074646718,-500.0,0.00013699,2]
[346548665,1735074646727,-500.0,0.00013699,2]
[346548666,1735074646736,-170.71400109,0.00013699,2]
[346548667,1735074646745,-153.3554759,0.000137,2]
[346548668,1735074646755,-214.1722873,0.000137,2]
[346548669,1735074646765,-214.1722875,0.000137,2]
[346548670,1735074646774,-214.1722873,0.000137,2]
[346548671,1735074646783,-214.1722875,0.000137,2]
[346548672,1735074646793,-2049.0,0.0001371,2]
[346548673,1735074646802,-529.0,0.0001371,2]
[346548674,1735074646812,-1767.009,0.0001371,2]
[346548675,1735074646821,-544.10194277,0.00013735,2]
[346548676,1735074646831,-666.603,0.0001378,2]
[346548677,1735074646840,-544.10194277,0.00013804,2]
[346548678,1735074646850,-261.5591029,0.00013832,2]
[346548679,1735074646859,-10306.23948023,0.00013832,2]
[346548680,1735074646869,-544.10194277,0.00013872,2]
[346548681,1735074646879,-2000.0,0.000139,2]
[346548682,1735074646888,-2000.0,0.000139,2]
[346548683,1735074646899,-618.0,0.000139,2]
[346548684,1735074646909,-152.0,0.00013922,2]
[346548685,1735074646919,-151.0,0.00013972,2]
[346548686,1735074646928,-500.0,0.00013972,2]
[346548687,1735074646938,-500.0,0.00013972,2]
[346548688,1735074646947,-852.22,0.00013972,2]
[346548689,1735074646957,-507.61607644,0.00013972,2]
[346548690,1735074646966,-614.95,0.00013972,2]
[346548691,1735074646976,-799.69,0.00013972,2]
[346548692,1735074646985,-500.0,0.00013972,2]
[346548693,1735074646994,-500.0,0.00013972,2]
[346548694,1735074647004,-508.07,0.00013972,2]
[346548695,1735074647013,-500.0,0.00013972,2]
[346548696,1735074647022,-150.14,0.00013972,2]
[346548697,1735074647031,-500.0,0.00013972,2]
[346548698,1735074647041,-418.011728,0.00013972,2]
[346548699,1735074647051,-418.011728,0.00013972,2]
[346548700,1735074647060,-500.0,0.00013972,2]
[346548701,1735074647070,-418.011728,0.00013972,2]
[346548702,1735074647079,-418.011728,0.00013972,2]
[346548703,1735074647088,-418.011728,0.00013972,2]
[346548704,1735074647097,-418.011728,0.00013972,2]
[346548705,1735074647107,-722.02,0.00013972,2]
[346548706,1735074647119,-500.0,0.00013972,2]
[346548707,1735074647129,-500.0,0.00013972,2]
[346548708,1735074647138,-265.198312,0.00013972,2]
[346548709,1735074647148,-649.5,0.00013972,2]
[346548710,1735074647157,-150.14,0.00013972,2]
[346548711,1735074647167,-150.14,0.00013972,2]
[346548712,1735074647176,-500.0,0.00013972,2]
[346548713,1735074647185,-500.0,0.00013972,2]
[346548714,1735074647327,-1049.73,0.00013972,2]
[346548715,1735074647337,-817.94,0.00013972,2]
[346548716,1735074647346,-500.0,0.00013972,2]
[346548717,1735074647355,-559.22,0.00013972,2]
[346548718,1735074647364,-500.0,0.00013972,2]
[346548719,1735074647373,-539.82906948,0.00013972,2]
[346548720,1735074647386,-500.0,0.00013972,2]
[346548721,1735074647395,-500.0,0.00013972,2]
[346548722,1735074647405,-827.97,0.00013972,2]
[346548723,1735074647414,-948.28,0.00013972,2]
[346548724,1735074647423,-500.0,0.00013972,2]
[346548725,1735074647432,-1684.19,0.00013972,2]
[346548726,1735074647442,-606.01,0.00013972,2]
[346548727,1735074647450,-500.0,0.00013972,2]
[346548728,1735074647460,-500.0,0.00013972,2]
[346548729,1735074647469,-579.17,0.00013972,2]
[346548730,1735074647479,-214.53609769,0.00013972,2]
[346548731,1735074647488,-1360.74,0.00013972,2]
[346548732,1735074647497,-1503.58,0.00013972,2]
[346548733,1735074647506,-500.0,0.00013972,2]
[346548734,1735074647515,-500.0,0.00013972,2]
[346548735,1735074647525,-500.0,0.00013972,2]
[346548736,1735074647534,-341.17712646,0.00013972,2]
[346548737,1735074647544,-500.0,0.00013972,2]
[346548738,1735074647553,-1246.3,0.00013972,2]
[346548739,1735074647562,-1008.71,0.00013972,2]
[346548740,1735074647572,-506.59002626,0.00013972,2]
[346548741,1735074647581,-864.38,0.00013972,2]
[346548742,1735074647590,-516.67728342,0.00013972,2]
[346548743,1735074647600,-500.0,0.00013972,2]
[346548744,1735074647609,-733.57,0.00013972,2]
[346548745,1735074647618,-929.48,0.00013972,2]
[346548746,1735074647627,-500.0,0.00013972,2]
[346548747,1735074647636,-500.0,0.00013972,2]
[346548748,1735074647646,-500.0,0.00013972,2]
[346548749,1735074647655,-725.56,0.00013972,2]
[346548750,1735074647665,-2928.6,0.00013972,2]
[346548751,1735074647675,-500.0,0.00013972,2]
[346548752,1735074647684,-3524.15,0.00013972,2]
[346548753,1735074647694,-561.44,0.00013972,2]
[346548754,1735074647703,-723.83,0.00013972,2]
[346548755,1735074647712,-982.82,0.00013972,2]
[346548756,1735074647721,-500.0,0.00013972,2]
[346548757,1735074647730,-500.0,0.00013972,2]
[346548758,1735074647739,-1277.78,0.00013972,2]
[346548759,1735074647749,-500.0,0.00013972,2]
[346548760,1735074647758,-1239.42,0.00013972,2]
[346548761,1735074647768,-500.0,0.00013972,2]
[346548762,1735074647778,-500.0,0.00013972,2]
[346548763,1735074647787,-768.46,0.00013972,2]
[346548764,1735074647797,-500.0,0.00013972,2]
[346548765,1735074647806,-500.0,0.00013972,2]
[346548766,1735074647815,-1655.16,0.00013972,2]
[346548767,1735074647824,-500.0,0.00013972,2]
[346548768,1735074647833,-151.0,0.00013972,2]
[346548769,1735074647842,-331.37,0.00013972,2]
[346548770,1735074647852,-500.0,0.00013972,2]
[346548771,1735074647861,-500.0,0.00013972,2]
[346548772,1735074647871,-500.0,0.00013972,2]
[346548773,1735074647882,-500.0,0.00013972,2]
[346548774,1735074647891,-500.0,0.00013972,2]
[346548775,1735074647900,-494.91992761,0.00013972,2]
[346548776,1735074647910,-500.0,0.00013972,2]
[346548777,1735074647919,-500.0,0.00013972,2]
[346548778,1735074647928,-3483.56,0.00013972,2]
[346548779,1735074647938,-959.46,0.00013972,2]
[346548780,1735074647947,-1180.91,0.00013972,2]
[346548781,1735074647956,-500.0,0.00013972,2]
[346548782,1735074647966,-151.0,0.00013972,2]
[346548783,1735074647975,-151.0,0.00013972,2]
[346548784,1735074647984,-151.0,0.00013972,2]
[346548785,1735074647994,-500.0,0.00013972,2]
[346548786,1735074648004,-500.0,0.00013972,2]
[346548787,1735074648014,-500.0,0.00013972,2]
[346548788,1735074648023,-500.0,0.00013972,2]
[346548789,1735074648033,-500.0,0.00013972,2]
[346548790,1735074648043,-1103.01,0.00013972,2]
[346548791,1735074648052,-837.67,0.00013972,2]
[346548792,1735074648061,-2035.67,0.00013972,2]
[346548793,1735074648071,-500.0,0.00013972,2]
[346548794,1735074648080,-500.0,0.00013972,2]
[346548795,1735074648089,-782.04,0.00013972,2]
[346548796,1735074648098,-500.0,0.00013972,2]
[346548797,1735074648108,-2169.72,0.00013972,2]
[346548798,1735074648119,-150.14,0.00013972,2]
[346548799,1735074648129,-500.0,0.00013972,2]
[346548800,1735074648138,-500.0,0.00013972,2]
[346548801,1735074648148,-768.89,0.00013972,2]
[346548802,1735074648159,-1359.44,0.00013972,2]
[346548803,1735074648168,-399.51969541,0.00013972,2]
[346548804,1735074648178,-3740.37,0.00013972,2]
[346548805,1735074648187,-500.0,0.00013972,2]
[346548806,1735074648198,-3046.32,0.00013972,2]
[346548807,1735074648208,-693.74,0.00013972,2]
[346548808,1735074648217,-2616.03,0.00013972,2]
[346548809,1735074648227,-500.0,0.00013972,2]
[346548810,1735074648237,-751.51,0.00013972,2]
[346548811,1735074648246,-2498.31,0.00013972,2]
[346548812,1735074648256,-738.69,0.00013972,2]
[346548813,1735074648266,-500.0,0.00013972,2]
[346548814,1735074648275,-151.0,0.00013972,2]
[346548815,1735074648285,-557.23,0.00013972,2]
[346548816,1735074648294,-151.0,0.00013972,2]
[346548817,1735074648303,-917.25,0.00013972,2]
[346548818,1735074648313,-151.0,0.00013972,2]
[346548819,1735074648323,-1719.2,0.00013972,2]
[346548820,1735074648332,-500.0,0.00013972,2]
[346548821,1735074648341,-1118.78,0.00013972,2]
[346548822,1735074648350,-1364.85,0.00013972,2]
[346548823,1735074648359,-1516.1,0.00013972,2]
[346548824,1735074648368,-985.22,0.00013972,2]
[346548825,1735074648377,-500.0,0.00013972,2]
[346548826,1735074648387,-500.0,0.00013972,2]
[346548827,1735074648396,-950.06,0.00013972,2]
[346548828,1735074648405,-1452.37,0.00013972,2]
[346548829,1735074648414,-1372.31,0.00013972,2]
[346548830,1735074648423,-500.0,0.00013972,2]
[346548831,1735074648432,-3689.57,0.00013972,2]
[346548832,1735074648441,-500.0,0.00013972,2]
[346548833,1735074648451,-1712.51,0.00013972,2]
[346548834,1735074648461,-500.0,0.00013972,2]
[346548835,1735074648471,-6399.22,0.00013972,2]
[346548836,1735074648480,-963.79,0.00013972,2]
[346548837,1735074648489,-500.0,0.00013972,2]
[346548838,1735074648499,-1390.96,0.00013972,2]
[346548839,1735074648508,-2406.0,0.00013972,2]
[346548840,1735074648518,-504.60957961,0.00013972,2]
[346548841,1735074648527,-712.17,0.00013972,2]
[346548842,1735074648537,-500.0,0.00013972,2]
[346548843,1735074648547,-500.0,0.00013972,2]
[346548844,1735074648556,-500.0,0.00013972,2]
[346548845,1735074648565,-2722.77,0.00013972,2]
[346548846,1735074648575,-1415.69,0.00013972,2]
[346548847,1735074648584,-1546.95,0.00013972,2]
[346548848,1735074648594,-1221.86,0.00013972,2]
[346548849,1735074648603,-500.0,0.00013972,2]
[346548850,1735074648612,-500.0,0.00013972,2]
[346548851,1735074648622,-619.39,0.00013972,2]
[346548852,1735074648634,-363.12853188,0.00013972,2]
[346548853,1735074648644,-500.0,0.00013972,2]
[346548854,1735074648654,-1894.25,0.00013972,2]
[346548855,1735074648664,-500.0,0.00013972,2]
[346548856,1735074648673,-1465.54,0.00013972,2]
[346548857,1735074648683,-622.66,0.00013972,2]
[346548858,1735074648694,-676.92,0.00013972,2]
[346548859,1735074648704,-547.69,0.00013972,2]
[346548860,1735074648714,-2795.41,0.00013972,2]
[346548861,1735074648724,-500.0,0.00013972,2]
[346548862,1735074648734,-1822.59,0.00013972,2]
[346548863,1735074648744,-1217.39,0.00013972,2]
[346548864,1735074648753,-25690.37,0.00013972,2]
[346548865,1735074648763,-3687.57,0.00013972,2]
[346548866,1735074648772,-629.96452198,0.00013972,2]
[346548867,1735074648782,-1090.43,0.00013972,2]
[346548868,1735074648791,-500.0,0.00013972,2]
[346548869,1735074648801,-1490.14,0.00013972,2]
[346548870,1735074648811,-151.0,0.00013972,2]
[346548871,1735074648821,-151.0,0.00013972,2]
[346548872,1735074648831,-151.0,0.00013972,2]
[346548873,1735074648841,-151.0,0.00013972,2]
[346548874,1735074648851,-219.95168,0.00013972,2]
[346548875,1735074648861,-3967.03,0.00013972,2]
[346548876,1735074648871,-500.0,0.00013972,2]
[346548877,1735074648881,-500.0,0.00013972,2]
[346548878,1735074648895,-500.0,0.00013972,2]
[346548879,1735074648904,-738.0,0.00013972,2]
[346548880,1735074648915,-500.0,0.00013972,2]
[346548881,1735074648925,-535.87,0.00013972,2]
[346548882,1735074648935,-500.0,0.00013972,2]
[346548883,1735074648944,-4161.12,0.00013972,2]
[346548884,1735074648954,-1008.15,0.00013972,2]
[346548885,1735074648963,-663.2,0.00013972,2]
[346548886,1735074648972,-500.0,0.00013972,2]
[346548887,1735074648982,-9437.96,0.00013972,2]
[346548888,1735074648992,-22252.2,0.00013972,2]
[346548889,1735074649002,-3311.02,0.00013972,2]
[346548890,1735074649011,-500.0,0.00013972,2]
[346548891,1735074649020,-500.0,0.00013972,2]
[346548892,1735074649029,-1934.62,0.00013972,2]
[346548893,1735074649039,-500.0,0.00013972,2]
[346548894,1735074649048,-500.0,0.00013972,2]
[346548895,1735074649058,-916.85,0.00013972,4]
[346548896,1735074649067,-1931.97,0.00013972,2]
[346548897,1735074649077,-569.02,0.00013972,2]
[346548898,1735074649086,-1761.19,0.00013972,2]
[346548899,1735074649096,-2702.58,0.00013972,2]
[346548900,1735074649105,-500.0,0.00013972,2]
[346548901,1735074649116,-3629.8,0.00013972,2]
[346548902,1735074649127,-150.14,0.00013972,2]
[346548903,1735074649137,-10402.05,0.00013972,2]
[346548904,1735074649147,-150.14,0.00013972,2]
[346548905,1735074649156,-584.23,0.00013972,2]
[346548906,1735074649166,-1685.52,0.00013972,2]
[346548907,1735074649175,-500.0,0.00013972,2]
[346548908,1735074649185,-598.8,0.00013972,2]
[346548909,1735074649195,-1624.33,0.00013972,2]
[346548910,1735074649205,-500.0,0.00013972,2]
[346548911,1735074649214,-150.14,0.00013972,2]
[346548912,1735074649224,-150.14,0.00013972,2]
[346548913,1735074649233,-500.0,0.00013972,2]
[346548914,1735074649242,-7098.07,0.00013972,2]
[346548915,1735074649252,-150.14,0.00013972,2]
[346548916,1735074649261,-1862.42,0.00013972,2]
[346548917,1735074649270,-500.0,0.00013972,2]
[346548918,1735074649279,-17664.69,0.00013972,2]
[346548919,1735074649289,-500.0,0.00013972,2]
[346548920,1735074649298,-1294.36,0.00013972,2]
[346548921,1735074649308,-500.0,0.00013972,2]
[346548922,1735074649317,-188.86473845,0.00013972,2]
[346548923,1735074649326,-1057.09,0.00013972,2]
[346548924,1735074649336,-500.0,0.00013972,2]
[346548925,1735074649345,-2801.44,0.00013972,2]
[346548926,1735074649354,-1042.79,0.00013972,2]
[346548927,1735074649363,-1809.63,0.00013972,2]
[346548928,1735074649373,-706.37,0.00013972,2]
[346548929,1735074649383,-1357.75,0.00013972,2]
[346548930,1735074649392,-1337.04,0.00013972,2]
[346548931,1735074649402,-1254.44,0.00013972,2]
[346548932,1735074649411,-2206.1,0.00013972,2]
[346548933,1735074649419,-818.15,0.00013972,2]
[346548934,1735074649429,-500.0,0.00013972,2]
[346548935,1735074649438,-83791.58,0.00013972,2]
[346548936,1735074649447,-621.58,0.00013972,2]
[346548937,1735074649456,-2970.01,0.00013972,2]
[346548938,1735074649465,-500.0,0.00013972,2]
[346548939,1735074649474,-553.21,0.00013972,2]
[346548940,1735074649484,-500.0,0.00013973,2]
[346548941,1735074649493,-500.0,0.00013973,2]
[346548942,1735074649502,-500.0,0.00013973,2]
[346548943,1735074649511,-154.1627932,0.00013973,2]
[346548944,1735074649521,-500.0,0.00013973,2]
[346548945,1735074649530,-500.0,0.00013973,2]
[346548946,1735074649539,-500.0,0.00013973,2]
[346548947,1735074649548,-500.0,0.00013973,2]
[346548948,1735074649557,-500.0,0.00013973,2]
[346548949,1735074649567,-500.0,0.00013973,2]
[346548950,1735074649576,-500.0,0.00013973,2]
[346548951,1735074649586,-500.0,0.00013973,2]
[346548952,1735074649595,-500.0,0.00013973,2]
[346548953,1735074649604,-500.0,0.00013973,2]
[346548954,1735074649613,-500.0,0.00013973,2]
[346548955,1735074649623,-400.0,0.00013973,2]
[346548956,1735074649633,-11153.0,0.00014,2]
[346548957,1735074649642,-1000.0,0.00014,14]
[346548958,1735074649652,-43000.0,0.00014,3]
[346548959,1735074649661,-306989.47,0.00014,2]
[346548960,1735074649671,-418.011728,0.00014,2]
[346548961,1735074649680,-418.011728,0.00014,2]
[346548962,1735074649689,-151.0,0.00014,2]
[346548963,1735074649699,-151.0,0.00014,2]
[346548964,1735074649707,-177.227898,0.00014,2]
[346548965,1735074649717,-1391.7376,0.00014,2]
[346548966,1735074649726,-1391.7376,0.00014,2]
[346548967,1735074649736,-151.0,0.00014,2]
[346548968,1735074649745,-151.0,0.00014,2]
[346548969,1735074649756,-151.0,0.00014,2]
[346548970,1735074649765,-562.0,0.00014,4]
[346548971,1735074649775,-3000.0,0.0001403,30]
[346548972,1735074649785,-3000.0,0.0001404,30]
[346548973,1735074649795,-5850.0,0.0001405,30]
[346548974,1735074649804,-1603.58,0.000141,2]
[346548975,1735074649814,-269.36919843,0.00014114,2]
[346548976,1735074649823,-3140.93424889,0.00014146,2]
[346548977,1735074649832,-252.48260991,0.00014146,2]
[346548978,1735074649961,-407.13390673,0.00014164,2]
[346548979,1735074649972,-407.13390673,0.00014219,2]
[346548980,1735074649982,-199.72,0.00014246,2]
[346548981,1735074649991,-150.14,0.00014246,2]
[346548982,1735074650000,-253.49990009,0.00014246,2]
[346548983,1735074650010,-300.01,0.00014246,2]
[346548984,1735074650019,-951.41244259,0.00014246,2]
[346548985,1735074650028,-152.2613416,0.00014246,2]